[Event "35th European Club Cup 2019"]
[Site "Ulcinj"]
[Date "2019.11.12"]
[Round "3.5"]
[White "Vucinic, Gojko"]
[Black "Kobalia, Mikhail"]
[Result "0-1"]
[ECO "B12"]
[WhiteElo "2384"]
[BlackElo "2608"]
[Annotator "ChessBase"]
[PlyCount "68"]
[EventDate "2019.11.10"]
[EventType "team-tourn"]
[EventCountry "MNE"]
[SourceTitle "playchess.com"]
[Source "ChessBase"]
[SourceQuality "1"]
[WhiteTeam "Itaka"]
[BlackTeam "Moscow Chess Team"]
[TimeControl "40/5400+30:1800+30"]

1. e4 {[%emt 0:00:00]} c6 {[%emt 0:00:00]} 2. d4 {[%emt 0:00:00]} d5 {[%emt 0:00:00]} 3. e5 {[%emt 0:00:00]} Bf5 {[%emt 0:00:00]} 4. h4 {[%emt 0:00:00]} h5 {[%emt 0:00:42]} 5. Bd3 {[%emt 0:00:00]} Bxd3 {[%emt 0:00:21]} 6. Qxd3 {[%emt 0:00:01]} Qa5+ {[%emt 0:00:26]} 7. Nd2 {[%emt 0:00:52]} e6 {[%emt 0:00:12]} 8. Ngf3 {[%emt 0:01:02]} Nh6 {[%emt 0:00:20]} 9. O-O {[%emt 0:01:37]} Nf5 {[%emt 0:00:15]} 10. c4 {[%emt 0:01:07]} Be7 {[%emt 0:00:29]} 11. g3 {[%emt 0:00:05]} O-O {[%emt 0:00:43]} 12. b3 {[%emt 0:07:33]} Rd8 {[%emt 0:01:46]} 13. Bb2 {[%emt 0:05:47]} c5 {[%emt 0:01:13]} 14. Qe2 {[%emt 0:01:04]} cxd4 {[%emt 0:15:16]} 15. Nxd4 {[%emt 0:01:48]} Nxd4 {[%emt 0:02:03]} 16. Bxd4 {[%emt 0:00:05]} Nc6 {[%emt 0:00:09]} 17. Bb2 {[%emt 0:01:19]} d4 {[%emt 0:34:39]} 18. Nf3 {[%emt 0:00:53]} d3 {[%emt 0:00:19]} 19. Qe4 {[%emt 0:00:32]} Rd7 {[%emt 0:00:05]} 20. Rfd1 {[%emt 0:02:51]} Rad8 {[%emt 0:00:06]} 21. a3 {[%emt 0:00:47]} Qa6 {[%emt 0:00:40]} 22. b4 {[%emt 0:07:35]} Qa4 {[%emt 0:00:37]} 23. Rd2 {[%emt 0:00:35]} a5 {[%emt 0:00:59]} 24. b5 {[%emt 0:01:36]} Na7 {[%emt 0:01:14]} 25. Rc1 {[%emt 0:04:24]} Nxb5 {[%emt 0:01:10]} 26. Rcd1 {[%emt 0:04:46]} Nxa3 {[%emt 0:03:11]} 27. Rxd3 {[%emt 0:03:20]} Rxd3 {[%emt 0:01:26]} 28. Rxd3 {[%emt 0:00:06]} Rxd3 {[%emt 0:00:07]} 29. Qxd3 {[%emt 0:00:06]} Nxc4 {[%emt 0:00:16]} 30. Bc1 {[%emt 0:00:35]} Qc6 {[%emt 0:03:20]} 31. Bg5 {[%emt 0:00:35]} Bf8 {[%emt 0:00:26]} 32. Qd8 {[%emt 0:01:40]} Qxf3 {[%emt 0:00:41]} 33. Be7 {[%emt 0:00:05]} Kh7 {[%emt 0:04:19]} 34. Qxf8 {[%emt 0:00:53]} Nxe5 {[%emt 0:00:48]} 0-1

[Event "35th European Club Cup 2019"]
[Site "Ulcinj"]
[Date "2019.11.12"]
[Round "3.5"]
[White "Goormachtigh, Johan"]
[Black "Sogaard, Soren"]
[Result "1/2-1/2"]
[ECO "A48"]
[WhiteElo "2180"]
[BlackElo "2248"]
[Annotator "NA"]
[PlyCount "55"]
[EventDate "2019.11.10"]
[EventType "team-tourn"]
[EventCountry "MNE"]
[SourceTitle "playchess.com"]
[Source "ChessBase"]
[SourceQuality "1"]
[WhiteTeam "KGSRL Gent"]
[BlackTeam "Aarhus Skolerne"]
[TimeControl "40/5400+30:1800+30"]

1. d4 {[%emt 0:00:00]} Nf6 {[%emt 0:00:00]} 2. Nf3 {[%emt 0:00:26]} g6 {[%emt 0:00:08]} 3. c4 {[%emt 0:00:10]} c5 {[%emt 0:01:04]} 4. Nc3 {[%emt 0:00:20]} Bg7 {[%emt 0:01:14]} 5. e4 {[%emt 0:02:08]} O-O {[%emt 0:03:02]} 6. Be2 {[%emt 0:01:39]} d6 {[%emt 0:01:43]} 7. O-O {[%emt 0:06:09]} Na6 {[%emt 0:01:23]} 8. d5 {[%emt 0:05:07]} Nc7 {[%emt 0:02:02]} 9. Bf4 {[%emt 0:08:11]} a6 {[%emt 0:03:14]} 10. a4 {[%emt 0:01:47]} b6 {[%emt 0:00:53]} 11. h3 {[%emt 0:01:29]} Rb8 {[%emt 0:06:27]} 12. e5 {[%emt 0:15:01]} Nfe8 {[%emt 0:02:36]} 13. Qb3 {[%emt 0:07:47]} Bd7 {[%emt 0:05:53]} 14. Rfd1 {[%emt 0:09:35]} b5 {[%emt 0:11:56]} 15. axb5 {[%emt 0:01:14]} axb5 {[%emt 0:00:38]} 16. cxb5 {[%emt 0:01:46]} Nxb5 {[%emt 0:02:40]} 17. Bxb5 {[%emt 0:05:22]} Bxb5 {[%emt 0:11:12]} 18. Nxb5 {[%emt 0:02:25]} Qb6 {[%emt 0:00:38]} 19. Qd3 {[%emt 0:05:17]} Qxb5 {[%emt 0:00:51]} 20. Qxb5 {[%emt 0:00:33]} Rxb5 {[%emt 0:00:05]} 21. Ra7 {[%emt 0:00:04]} dxe5 {[%emt 0:10:05]} 22. Nxe5 {[%emt 0:03:20]} Bxe5 {[%emt 0:00:30]} 23. Bxe5 {[%emt 0:00:02]} f6 {[%emt 0:00:06]} 24. Bg3 {[%emt 0:09:04]} Rf7 {[%emt 0:01:11]} 25. Ra8 {[%emt 0:00:30]} Rf8 {[%emt 0:09:19]} 26. Ra7 {[%emt 0:01:00]} Rf7 {[%emt 0:00:08]} 27. Ra8 {[%emt 0:00:56]} Rf8 {[%emt 0:00:06]} 28. Ra7 {[%emt 0:01:01]} 1/2-1/2

[Event "35th European Club Cup 2019"]
[Site "Ulcinj"]
[Date "2019.11.12"]
[Round "3.6"]
[White "Murzin, Volodar"]
[Black "Damjanovic, Vladimir"]
[Result "1-0"]
[ECO "B40"]
[WhiteElo "2429"]
[BlackElo "2398"]
[Annotator "NA"]
[PlyCount "89"]
[EventDate "2019.11.10"]
[EventType "team-tourn"]
[EventCountry "MNE"]
[SourceTitle "playchess.com"]
[Source "ChessBase"]
[SourceQuality "1"]
[WhiteTeam "Moscow Chess Team"]
[BlackTeam "Itaka"]
[TimeControl "40/5400+30:1800+30"]

1. e4 {[%emt 0:00:00]} c5 {[%emt 0:00:00]} 2. Nf3 {[%emt 0:00:00]} e6 {[%emt 0:00:39]} 3. g3 {[%emt 0:00:20]} d5 {[%emt 0:01:03]} 4. exd5 {[%emt 0:00:18]} exd5 {[%emt 0:00:19]} 5. d4 {[%emt 0:00:10]} Nf6 {[%emt 0:00:44]} 6. Bg2 {[%emt 0:00:18]} Nc6 {[%emt 0:02:03]} 7. O-O {[%emt 0:00:25]} h6 {[%emt 0:02:19]} 8. Re1+ {[%emt 0:01:16]} Be6 {[%emt 0:02:56]} 9. Nbd2 {[%emt 0:03:59]} Qb6 {[%emt 0:10:05]} 10. Nb3 {[%emt 0:17:58]} c4 {[%emt 0:03:47]} 11. Nbd2 {[%emt 0:00:12]} Nxd4 {[%emt 0:12:07]} 12. Nxd4 {[%emt 0:00:39]} Qxd4 {[%emt 0:00:32]} 13. c3 {[%emt 0:00:31]} Qc5 {[%emt 0:08:44]} 14. Nf3 {[%emt 0:01:32]} Qb6 {[%emt 0:08:58]} 15. Be3 {[%emt 0:04:22]} Bc5 {[%emt 0:00:13]} 16. Qa4+ {[%emt 0:01:00]} Ke7 {[%emt 0:02:44]} 17. Nd4 {[%emt 0:03:44]} Rhe8 {[%emt 0:01:08]} 18. b4 {[%emt 0:14:59]} cxb3 {[%emt 0:00:07]} 19. axb3 {[%emt 0:00:07]} a5 {[%emt 0:02:34]} 20. Reb1 {[%emt 0:02:38]} Bd7 {[%emt 0:01:44]} 21. Qa2 {[%emt 0:00:39]} Ng4 {[%emt 0:05:45]} 22. Bf4 {[%emt 0:03:47]} Kf8 {[%emt 0:03:26]} 23. b4 {[%emt 0:03:15]} Bxd4 {[%emt 0:00:43]} 24. cxd4 {[%emt 0:00:52]} Bf5 {[%emt 0:05:02]} 25. Rd1 {[%emt 0:08:22]} axb4 {[%emt 0:06:25]} 26. Qxa8 {[%emt 0:03:27]} Rxa8 {[%emt 0:00:05]} 27. Rxa8+ {[%emt 0:00:08]} Ke7 {[%emt 0:00:06]} 28. Bxd5 {[%emt 0:01:16]} g5 {[%emt 0:08:44]} 29. Rb8 {[%emt 0:05:05]} gxf4 {[%emt 0:09:20]} 30. Rxb7+ {[%emt 0:00:13]} Qxb7 {[%emt 0:00:03]} 31. Bxb7 {[%emt 0:00:06]} fxg3 {[%emt 0:00:57]} 32. hxg3 {[%emt 0:00:39]} Bc2 {[%emt 0:00:37]} 33. Re1+ {[%emt 0:01:22]} Kd6 {[%emt 0:00:04]} 34. Be4 {[%emt 0:04:09]} Bxe4 {[%emt 0:00:07]} 35. Rxe4 {[%emt 0:00:01]} Nf6 {[%emt 0:00:02]} 36. Rf4 {[%emt 0:00:39]} Nd5 {[%emt 0:01:58]} 37. Rxf7 {[%emt 0:00:35]} Kc6 {[%emt 0:01:44]} 38. Kf1 {[%emt 0:00:30]} Nc3 {[%emt 0:00:29]} 39. Rf3 {[%emt 0:02:02]} Kd5 {[%emt 0:00:18]} 40. Ke1 {[%emt 0:00:00]} Kxd4 {[%emt 0:00:00]} 41. Rf4+ {[%emt 0:01:11]} Kc5 {[%emt 0:01:42]} 42. Kd2 {[%emt 0:00:07]} Nd5 {[%emt 0:01:19]} 43. Rh4 {[%emt 0:00:30]} Nf6 {[%emt 0:00:49]} 44. Rxh6 {[%emt 0:00:37]} Ne4+ {[%emt 0:00:14]} 45. Ke3 {[%emt 0:00:06]} 1-0

[Event "35th European Club Cup 2019"]
[Site "Ulcinj"]
[Date "2019.11.12"]
[Round "3.6"]
[White "Rendboe, John Filip"]
[Black "Vanheirzeele, Daniel"]
[Result "1/2-1/2"]
[ECO "E00"]
[WhiteElo "2119"]
[BlackElo "2105"]
[Annotator "NA"]
[PlyCount "60"]
[EventDate "2019.11.10"]
[EventType "team-tourn"]
[EventCountry "MNE"]
[SourceTitle "playchess.com"]
[Source "ChessBase"]
[SourceQuality "1"]
[WhiteTeam "Aarhus Skolerne"]
[BlackTeam "KGSRL Gent"]
[TimeControl "40/5400+30:1800+30"]

1. c4 Nf6 2. d4 e6 3. Nc3 Bb4 4. e3 b6 5. Nge2 Ne4 6. f3 Nxc3 7. bxc3 Bd6 8. e4 O-O 9. Be3 c5 10. e5 Be7 11. Ng3 f5 12. exf6 Bxf6 13. Be2 Nc6 14. O-O cxd4 15. cxd4 Ba6 16. Rc1 Rc8 17. d5 Na5 18. c5 Bxe2 19. Nxe2 bxc5 20. Rxc5 Nc4 21. Bf2 Qe7 22. Rxc8 Rxc8 23. Ng3 e5 24. Qa4 Nb6 25. Qb5 Qd6 26. Rd1 Qc7 27. Ne4 Qc2 28. Qb3 Qxb3 29. axb3 Rc2 30. Kf1 Rb2 1/2-1/2

[Event "35th European Club Cup 2019"]
[Site "Ulcinj"]
[Date "2019.11.12"]
[Round "3.7"]
[White "Kalezic, Blazo"]
[Black "Cernousek, Lukas"]
[Result "1-0"]
[ECO "B50"]
[WhiteElo "2455"]
[BlackElo "2461"]
[Annotator "ChessBase"]
[PlyCount "81"]
[EventDate "2019.11.10"]
[EventType "team-tourn"]
[EventCountry "MNE"]
[SourceTitle "playchess.com"]
[Source "ChessBase"]
[SourceQuality "1"]
[WhiteTeam "Buducnost"]
[BlackTeam "Unichess"]
[TimeControl "40/5400+30:1800+30"]

1. e4 c5 {[%emt 0:00:00]} 2. Nf3 {[%emt 0:00:00]} d6 {[%emt 0:00:00]} 3. d4 {[%emt 0:00:00]} Nf6 {[%emt 0:00:10]} 4. dxc5 {[%emt 0:00:23]} Qa5+ {[%emt 0:00:00]} 5. Nbd2 {[%emt 0:03:45]} Nxe4 {[%emt 0:16:54]} 6. b4 {[%emt 0:07:32]} Qxb4 {[%emt 0:00:13]} 7. Rb1 {[%emt 0:00:09]} Qa5 {[%emt 0:01:46]} 8. Rb5 {[%emt 0:00:51]} Qa4 {[%emt 0:02:48]} 9. Nxe4 {[%emt 0:01:17]} Qxe4+ {[%emt 0:00:25]} 10. Be3 {[%emt 0:04:54]} dxc5 {[%emt 0:15:52]} 11. Bd3 {[%emt 0:02:14]} Qd5 {[%emt 0:10:29]} 12. Rxc5 {[%emt 0:01:57]} Qd8 {[%emt 0:00:11]} 13. Ne5 {[%emt 0:02:01]} Nc6 {[%emt 0:05:15]} 14. O-O {[%emt 0:13:46]} Nxe5 {[%emt 0:05:54]} 15. Rxe5 {[%emt 0:00:43]} e6 {[%emt 0:00:42]} 16. Qg4 {[%emt 0:05:15]} Bd7 {[%emt 0:01:35]} 17. Rd1 {[%emt 0:00:54]} Qc7 {[%emt 0:04:42]} 18. Bb5 {[%emt 0:12:02]} Bc6 {[%emt 0:16:31]} 19. Bf4 {[%emt 0:02:50]} Bd6 {[%emt 0:00:51]} 20. Rxe6+ {[%emt 0:09:15]} fxe6 {[%emt 0:00:02]} 21. Bxd6 {[%emt 0:00:16]} Qf7 {[%emt 0:02:48]} 22. Bxc6+ {[%emt 0:01:21]} bxc6 {[%emt 0:00:01]} 23. c4 {[%emt 0:00:30]} Qf6 {[%emt 0:08:17]} 24. h4 {[%emt 0:02:47]} Kf7 {[%emt 0:03:10]} 25. Rd3 {[%emt 0:02:15]} Kg8 {[%emt 0:01:55]} 26. Rf3 {[%emt 0:04:45]} Qg6 {[%emt 0:00:03]} 27. Qf4 {[%emt 0:00:14]} h5 {[%emt 0:01:17]} 28. Be5 {[%emt 0:04:05]} Rh6 {[%emt 0:01:01]} 29. Kh2 {[%emt 0:01:31]} Qf5 {[%emt 0:00:08]} 30. Qd4 {[%emt 0:07:31]} Qg4 {[%emt 0:00:30]} 31. Rf4 {[%emt 0:01:37]} Qg6 {[%emt 0:00:14]} 32. Qd7 {[%emt 0:00:50]} Rf8 {[%emt 0:01:39]} 33. Qxc6 {[%emt 0:02:01]} Rf5 {[%emt 0:00:21]} 34. Qd6 {[%emt 0:02:53]} Qf7 {[%emt 0:00:39]} 35. c5 {[%emt 0:00:24]} Rxf4 {[%emt 0:00:26]} 36. Bxf4 {[%emt 0:00:02]} Rf6 {[%emt 0:00:05]} 37. Bg3 {[%emt 0:00:51]} e5 {[%emt 0:00:38]} 38. Qxe5 {[%emt 0:00:10]} Qxa2 {[%emt 0:00:18]} 39. c6 {[%emt 0:00:13]} Qf7 {[%emt 0:01:05]} 40. Qb8+ {[%emt 0:00:00]} Kh7 {[%emt 0:00:00]} 41. c7 {[%emt 0:01:13]} 1-0

[Event "35th European Club Cup 2019"]
[Site "Ulcinj"]
[Date "2019.11.12"]
[Round "3.8"]
[White "Burg, Twan"]
[Black "Riff, Jean-Noel"]
[Result "1/2-1/2"]
[ECO "A13"]
[WhiteElo "2536"]
[BlackElo "2514"]
[Annotator "ChessBase"]
[PlyCount "83"]
[EventDate "2019.11.10"]
[EventType "team-tourn"]
[EventCountry "MNE"]
[SourceTitle "playchess.com"]
[Source "ChessBase"]
[SourceQuality "1"]
[WhiteTeam "Echiquier Mosan"]
[BlackTeam "Mulhouse"]
[TimeControl "40/5400+30:1800+30"]

1. c4 e6 2. Nc3 Bb4 3. Qc2 Nc6 4. d4 d6 5. Nf3 h6 6. Bg5 Nf6 7. Bd2 Qe7 8. a3 Bxc3 9. Bxc3 e5 10. dxe5 Nxe5 11. Nxe5 dxe5 12. g3 O-O 13. Bg2 a5 14. O-O Re8 15. b3 Qc5 16. Bb2 Ra6 17. Qc3 e4 18. Rad1 Bg4 19. Rd5 Qf8 20. Rxa5 Bxe2 21. Re1 Bd3 22. Rxa6 bxa6 23. h3 Qc5 24. Re3 a5 25. g4 Rb8 26. Bf1 Qb6 27. Bxd3 Qxb3 28. Bxe4 Qxb2 29. Qxb2 Rxb2 30. Bg2 Ra2 31. Re7 Ra1+ 32. Kh2 c5 33. Rc7 Rxa3 34. Rxc5 Rc3 35. Rc8+ Kh7 36. c5 a4 37. c6 a3 38. f4 g5 39. fxg5 hxg5 40. Ra8 Kg7 41. Ra5 Kg6 42. Ra8 1/2-1/2

[Event "35th European Club Cup 2019"]
[Site "Ulcinj"]
[Date "2019.11.12"]
[Round "3.8"]
[White "Simek, Petr"]
[Black "Sukovic, Andrej"]
[Result "1/2-1/2"]
[ECO "E62"]
[WhiteElo "2307"]
[BlackElo "2254"]
[Annotator "NA"]
[PlyCount "164"]
[EventDate "2019.11.10"]
[EventType "team-tourn"]
[EventCountry "MNE"]
[SourceTitle "playchess.com"]
[Source "ChessBase"]
[SourceQuality "1"]
[WhiteTeam "Unichess"]
[BlackTeam "Buducnost"]
[TimeControl "40/5400+30:1800+30"]

1. d4 {[%emt 0:00:00]} Nf6 {[%emt 0:00:00]} 2. c4 {[%emt 0:00:00]} g6 3. g3 Bg7 {[%emt 0:00:00]} 4. Bg2 {[%emt 0:00:00]} O-O {[%emt 0:00:09]} 5. Nc3 {[%emt 0:00:00]} d6 {[%emt 0:00:05]} 6. Nf3 {[%emt 0:00:00]} Nc6 {[%emt 0:00:06]} 7. O-O {[%emt 0:00:05]} Bg4 {[%emt 0:01:40]} 8. h3 {[%emt 0:06:15]} Bxf3 {[%emt 0:00:09]} 9. Bxf3 {[%emt 0:00:05]} Nd7 {[%emt 0:00:13]} 10. e3 {[%emt 0:11:31]} e5 {[%emt 0:00:21]} 11. dxe5 {[%emt 0:01:22]} Ncxe5 {[%emt 0:10:10]} 12. Bxb7 {[%emt 0:03:17]} Rb8 {[%emt 0:00:06]} 13. Bg2 {[%emt 0:00:06]} Nxc4 {[%emt 0:00:07]} 14. Qc2 {[%emt 0:00:06]} Nc5 15. Rb1 {[%emt 0:02:35]} a5 {[%emt 0:21:42]} 16. Rd1 {[%emt 0:08:49]} Ne5 {[%emt 0:34:55]} 17. b3 {[%emt 0:00:30]} h5 {[%emt 0:00:30]} 18. Bb2 {[%emt 0:03:58]} h4 {[%emt 0:06:31]} 19. g4 {[%emt 0:00:19]} Na6 {[%emt 0:02:37]} 20. Qe2 {[%emt 0:12:39]} Nc5 {[%emt 0:01:42]} 21. Ba1 {[%emt 0:00:22]} Ned7 {[%emt 0:00:34]} 22. Nb5 {[%emt 0:03:49]} Bxa1 {[%emt 0:01:30]} 23. Rxa1 {[%emt 0:00:04]} Ne6 {[%emt 0:01:24]} 24. Rac1 {[%emt 0:11:25]} Ndc5 {[%emt 0:00:30]} 25. Na7 {[%emt 0:01:00]} Qe8 {[%emt 0:05:09]} 26. Qd2 {[%emt 0:03:25]} Rb6 {[%emt 0:01:42]} 27. Qd5 {[%emt 0:06:55]} Nd8 {[%emt 0:02:08]} 28. a4 {[%emt 0:11:39]} Qe6 {[%emt 0:05:51]} 29. Rc3 {[%emt 0:01:48]} Qxd5 {[%emt 0:01:35]} 30. Bxd5 {[%emt 0:00:13]} Ra6 {[%emt 0:00:42]} 31. Nb5 {[%emt 0:06:49]} c6 {[%emt 0:00:04]} 32. Nxd6 {[%emt 0:00:03]} cxd5 {[%emt 0:00:03]} 33. Rxc5 {[%emt 0:00:12]} Rxd6 {[%emt 0:00:06]} 34. Rxa5 {[%emt 0:00:04]} Ne6 35. Raxd5 {[%emt 0:03:02]} Rb6 {[%emt 0:01:21]} 36. R1d3 {[%emt 0:03:13]} Rfb8 {[%emt 0:00:12]} 37. g5 {[%emt 0:00:16]} Rxb3 {[%emt 0:00:10]} 38. Rxb3 {[%emt 0:00:04]} Rxb3 {[%emt 0:00:06]} 39. Kg2 {[%emt 0:00:05]} Ra3 {[%emt 0:02:11]} 40. a5 {[%emt 0:00:00]} Kf8 {[%emt 0:00:00]} 41. Re5 {[%emt 0:01:43]} Ke7 {[%emt 0:02:33]} 42. f4 {[%emt 0:00:14]} Kd6 {[%emt 0:00:39]} 43. Kf3 {[%emt 0:00:45]} Nd4+ {[%emt 0:06:19]} 44. Kg4 {[%emt 0:00:11]} Nf5 {[%emt 0:02:42]} 45. Kf3 {[%emt 0:00:05]} Ra2 {[%emt 0:02:15]} 46. e4 {[%emt 0:03:41]} Ra3+ {[%emt 0:02:48]} 47. Kg2 {[%emt 0:01:36]} Ne3+ {[%emt 0:05:45]} 48. Kh2 {[%emt 0:00:11]} Ra2+ {[%emt 0:00:32]} 49. Kg1 {[%emt 0:00:13]} Nc4 {[%emt 0:02:05]} 50. Rd5+ {[%emt 0:00:17]} Kc6 {[%emt 0:01:45]} 51. Rd8 {[%emt 0:00:46]} Rxa5 {[%emt 0:02:42]} 52. Rc8+ {[%emt 0:00:08]} Kb5 {[%emt 0:00:04]} 53. Rc7 {[%emt 0:00:09]} Ra1+ {[%emt 0:03:14]} 54. Kg2 {[%emt 0:00:06]} Nd6 {[%emt 0:01:33]} 55. e5 {[%emt 0:00:17]} Ra2+ {[%emt 0:00:05]} 56. Kg1 {[%emt 0:02:16]} Nf5 {[%emt 0:02:52]} 57. Rxf7 {[%emt 0:00:06]} Kc5 {[%emt 0:00:31]} 58. Rf6 {[%emt 0:01:11]} Kd5 {[%emt 0:00:37]} 59. Rxg6 {[%emt 0:04:31]} Ke4 {[%emt 0:00:07]} 60. Rb6 {[%emt 0:00:04]} Kxf4 {[%emt 0:00:39]} 61. g6 {[%emt 0:00:09]} Kxe5 {[%emt 0:00:31]} 62. Rb4 {[%emt 0:00:24]} Ra7 {[%emt 0:01:20]} 63. Rg4 {[%emt 0:00:32]} Kf6 {[%emt 0:00:13]} 64. Kf2 {[%emt 0:00:39]} Rg7 {[%emt 0:00:05]} 65. Kf3 {[%emt 0:00:17]} Rxg6 {[%emt 0:00:20]} 66. Rxg6+ {[%emt 0:00:06]} Kxg6 {[%emt 0:00:05]} 67. Kg4 {[%emt 0:00:05]} Kf6 {[%emt 0:00:07]} 68. Kh5 {[%emt 0:00:17]} Ke6 {[%emt 0:01:55]} 69. Kg4 {[%emt 0:00:19]} Kf6 {[%emt 0:01:46]} 70. Kh5 {[%emt 0:00:04]} Kf7 {[%emt 0:00:08]} 71. Kg5 {[%emt 0:00:08]} Ke6 {[%emt 0:00:04]} 72. Kg4 {[%emt 0:00:08]} Ke5 {[%emt 0:00:20]} 73. Kg5 {[%emt 0:00:06]} Ke4 {[%emt 0:00:32]} 74. Kg4 {[%emt 0:00:05]} Ke3 {[%emt 0:00:46]} 75. Kxf5 {[%emt 0:00:06]} Kf3 {[%emt 0:00:03]} 76. Ke5 {[%emt 0:00:06]} Kg3 {[%emt 0:00:08]} 77. Ke4 {[%emt 0:00:05]} Kxh3 {[%emt 0:00:06]} 78. Kf3 {[%emt 0:00:03]} Kh2 {[%emt 0:00:02]} 79. Kf2 {[%emt 0:00:05]} h3 {[%emt 0:00:06]} 80. Kf1 {[%emt 0:00:03]} Kg3 {[%emt 0:00:04]} 81. Kg1 {[%emt 0:00:03]} h2+ 82. Kh1 {[%emt 0:00:03]} Kh3 1/2-1/2

[Event "35th European Club Cup 2019"]
[Site "Ulcinj"]
[Date "2019.11.12"]
[Round "3.9"]
[White "Djukic, Nikola"]
[Black "Vrbata, Zbynek"]
[Result "1-0"]
[ECO "C18"]
[WhiteElo "2507"]
[BlackElo "2353"]
[Annotator "ChessBase"]
[PlyCount "53"]
[EventDate "2019.11.10"]
[EventType "team-tourn"]
[EventCountry "MNE"]
[SourceTitle "playchess.com"]
[Source "ChessBase"]
[SourceQuality "1"]
[WhiteTeam "Buducnost"]
[BlackTeam "Unichess"]
[TimeControl "40/5400+30:1800+30"]

1. e4 e6 2. d4 d5 3. Nc3 Bb4 4. e5 c5 5. a3 Bxc3+ 6. bxc3 Ne7 7. Qg4 Qc7 8. Bd3 cxd4 9. Ne2 dxc3 10. Qxg7 Rg8 11. Qxh7 Nbc6 {[%emt 0:12:37]} 12. Bf4 {[%emt 0:03:01]} Bd7 {[%emt 0:04:36]} 13. O-O {[%emt 0:01:13]} O-O-O {[%emt 0:11:04]} 14. Bg3 {[%emt 0:00:58]} Nxe5 {[%emt 0:05:25]} 15. Rfe1 N7c6 {[%emt 0:09:08]} 16. Nxc3 {[%emt 0:08:51]} a6 {[%emt 0:05:25]} 17. Qh6 {[%emt 0:15:18]} Qa5 {[%emt 0:06:25]} 18. Na2 f6 {[%emt 0:10:47]} 19. Nb4 {[%emt 0:30:41]} Rdf8 {[%emt 0:13:10]} 20. Rab1 {[%emt 0:10:17]} Qc5 {[%emt 0:09:01]} 21. Be2 {[%emt 0:08:44]} Nf7 {[%emt 0:04:27]} 22. Qd2 {[%emt 0:07:09]} Ng5 {[%emt 0:00:34]} 23. Bd3 {[%emt 0:02:47]} Ne5 {[%emt 0:03:03]} 24. Qe2 {[%emt 0:00:52]} Nc4 {[%emt 0:02:31]} 25. Nxa6 {[%emt 0:00:43]} Qd4 {[%emt 0:01:01]} 26. c3 {[%emt 0:02:21]} Qa7 {[%emt 0:01:01]} 27. Bxc4 {[%emt 0:00:41]} 1-0

[Event "35th European Club Cup 2019"]
[Site "Ulcinj"]
[Date "2019.11.12"]
[Round "3.9"]
[White "Sokolov, Andrei"]
[Black "Beerdsen, Thomas"]
[Result "0-1"]
[ECO "B48"]
[WhiteElo "2497"]
[BlackElo "2468"]
[Annotator "ChessBase"]
[PlyCount "100"]
[EventDate "2019.11.10"]
[EventType "team-tourn"]
[EventCountry "MNE"]
[SourceTitle "playchess.com"]
[Source "ChessBase"]
[SourceQuality "1"]
[WhiteTeam "Mulhouse"]
[BlackTeam "Echiquier Mosan"]
[TimeControl "40/5400+30:1800+30"]

1. e4 c5 2. Nf3 e6 3. d4 cxd4 4. Nxd4 Nc6 5. Nc3 Qc7 6. Be3 a6 7. Qd2 Nf6 8. O-O-O Bb4 9. f3 b5 10. g4 h6 11. Nxc6 Qxc6 12. Bd4 Be7 13. Bd3 b4 14. Ne2 d5 15. Ng3 Bb7 16. Kb1 O-O-O 17. e5 Nd7 18. f4 Nb6 19. b3 Kb8 20. Qe3 Nd7 21. Rc1 Bc5 22. Ne2 Qb6 23. c3 Rc8 24. cxb4 Qxb4 25. Rc2 Rc7 26. Rhc1 Rhc8 27. f5 a5 28. fxe6 fxe6 29. Bxc5 Nxc5 30. Nd4 a4 31. Bg6 axb3 32. axb3 Ba6 33. Qd2 Qxd2 34. Rxd2 Ne4 35. Rxc7 Nxd2+ 36. Kc2 Rxc7+ 37. Kxd2 Bc8 38. h4 Rb7 39. g5 hxg5 40. hxg5 Kc7 41. Bf7 Rb6 42. Kc3 Kd7 43. b4 Ba6 44. Bh5 Bc4 45. Bf7 Ke7 46. g6 Bb5 47. Nb3 Be8 48. Bxe8 Kxe8 49. Nd4 Kd7 50. b5 Rb8 0-1

[Event "35th European Club Cup 2019"]
[Site "Ulcinj"]
[Date "2019.11.12"]
[Round "3.10"]
[White "Umudova, Nargiz"]
[Black "Papadiamandis, Elliot"]
[Result "0-1"]
[ECO "B51"]
[WhiteElo "2270"]
[BlackElo "2220"]
[Annotator "NA"]
[PlyCount "80"]
[EventDate "2019.11.10"]
[EventType "team-tourn"]
[EventCountry "MNE"]
[SourceTitle "playchess.com"]
[Source "ChessBase"]
[SourceQuality "1"]
[WhiteTeam "Echiquier Mosan"]
[BlackTeam "Mulhouse"]
[TimeControl "40/5400+30:1800+30"]

1. e4 {[%emt 0:00:00]} c5 {[%emt 0:00:00]} 2. Nf3 {[%emt 0:00:00]} d6 {[%emt 0:00:00]} 3. Bb5+ {[%emt 0:00:00]} Nd7 {[%emt 0:00:00]} 4. d4 {[%emt 0:00:01]} cxd4 {[%emt 0:00:03]} 5. Qxd4 {[%emt 0:00:05]} a6 {[%emt 0:00:18]} 6. Be2 {[%emt 0:00:07]} e5 {[%emt 0:02:57]} 7. Qe3 {[%emt 0:00:11]} Qa5+ {[%emt 0:11:29]} 8. Bd2 {[%emt 0:14:38]} Qc5 {[%emt 0:01:28]} 9. c4 {[%emt 0:02:44]} Ngf6 {[%emt 0:00:55]} 10. Nc3 {[%emt 0:00:53]} Be7 {[%emt 0:04:29]} 11. O-O {[%emt 0:01:10]} Qxe3 {[%emt 0:02:07]} 12. Bxe3 {[%emt 0:00:11]} Ng4 {[%emt 0:00:08]} 13. Bd2 {[%emt 0:10:20]} Nc5 {[%emt 0:00:56]} 14. b4 {[%emt 0:05:22]} Ne6 {[%emt 0:00:21]} 15. Nd5 {[%emt 0:06:42]} Bd8 {[%emt 0:04:16]} 16. Rfd1 {[%emt 0:08:32]} Nf6 {[%emt 0:07:19]} 17. Nxf6+ {[%emt 0:04:01]} Bxf6 {[%emt 0:00:44]} 18. Be3 {[%emt 0:03:50]} Be7 {[%emt 0:04:32]} 19. Nd2 {[%emt 0:02:35]} O-O {[%emt 0:01:30]} 20. Nb1 {[%emt 0:01:43]} a5 {[%emt 0:13:30]} 21. b5 {[%emt 0:06:04]} Nd4 {[%emt 0:04:10]} 22. Bxd4 {[%emt 0:03:53]} exd4 {[%emt 0:00:22]} 23. Nd2 {[%emt 0:00:37]} Bf6 {[%emt 0:01:29]} 24. Rac1 {[%emt 0:03:26]} a4 {[%emt 0:02:02]} 25. f4 {[%emt 0:08:26]} Re8 {[%emt 0:02:04]} 26. Bf3 {[%emt 0:02:10]} g5 {[%emt 0:04:27]} 27. e5 {[%emt 0:06:20]} dxe5 {[%emt 0:03:50]} 28. Ne4 {[%emt 0:00:31]} Be7 {[%emt 0:01:58]} 29. fxe5 {[%emt 0:03:19]} g4 {[%emt 0:01:48]} 30. Be2 {[%emt 0:00:13]} Bf5 {[%emt 0:00:29]} 31. Bd3 {[%emt 0:03:33]} Bxe4 {[%emt 0:02:55]} 32. Bxe4 {[%emt 0:00:01]} Bc5 {[%emt 0:00:54]} 33. Bxb7 {[%emt 0:03:39]} Ra7 {[%emt 0:01:29]} 34. Bd5 {[%emt 0:00:18]} Rxe5 {[%emt 0:00:17]} 35. Rb1 {[%emt 0:01:16]} Rae7 {[%emt 0:01:04]} 36. g3 {[%emt 0:00:37]} d3+ {[%emt 0:00:56]} 37. Kh1 {[%emt 0:00:08]} d2 {[%emt 0:00:23]} 38. Bg2 {[%emt 0:00:49]} Re1+ {[%emt 0:00:42]} 39. Bf1 {[%emt 0:00:01]} Rxd1 {[%emt 0:00:12]} 40. Rxd1 {[%emt 0:00:00]} Re1 {[%emt 0:00:00]} 0-1